bitfinex/quotes_SOLUSD_20251118
["timestamp","ask_amount","ask_price","bid_price","bid_amount"]
[1763478447848,6.72477306,138.74,138.69,6.06477306]
[1763478448155,6.72477306,138.74,138.67,0.67]
[1763478448322,6.06477306,138.72,138.67,15.85360075]
[1763478448518,6.06477306,138.72,138.67,9.78882769]
[1763478448734,6.06477306,138.72,138.67,15.85360075]
[1763478448936,6.06477306,138.73,138.68,6.06477306]
[1763478449116,4.5,138.74,138.68,6.06477306]
[1763478449319,6.72477306,138.73,138.66,10.45882769]
[1763478449522,0.66,138.73,138.68,6.06477306]
[1763478449716,0.66,138.73,138.69,6.06477306]
[1763478449932,18.12096,138.76,138.7,15.85360075]
[1763478450129,18.12096,138.76,138.72,15.85360075]
[1763478450338,0.66,138.75,138.69,9.78882769]
[1763478450537,18.78096,138.76,138.69,10.45882769]
[1763478450737,18.78096,138.76,138.72,9.78882769]
[1763478450937,18.78096,138.76,138.7,15.85360075]
[1763478450938,24.84573306,138.76,138.7,15.85360075]
[1763478451138,6.72477306,138.75,138.7,9.78882769]
[1763478451320,6.06477306,138.74,138.69,6.06477306]
[1763478451661,0.66,138.74,138.69,6.06477306]
[1763478451824,18.12096,138.76,138.71,6.06477306]
[1763478452218,0.66,138.78,138.73,15.85360075]
[1763478452419,0.66,138.78,138.74,6.06477306]
[1763478452645,6.72477306,138.78,138.73,9.78882769]
[1763478452828,0.66,138.78,138.73,6.06477306]
[1763478453029,0.66,138.77,138.73,6.06477306]
[1763478453217,0.66,138.81,138.75,6.06477306]
[1763478453551,0.66,138.81,138.76,15.85360075]
[1763478453847,6.72477306,138.84,138.76,10.45882769]
[1763478454051,6.72477306,138.83,138.77,15.85360075]
[1763478454657,0.66,138.82,138.77,6.06477306]
[1763478454859,0.66,138.82,138.76,14.28882769]
[1763478455064,0.66,138.82,138.77,6.06477306]
[1763478455450,0.90051149,138.81,138.68,0.67]
[1763478455631,0.90051149,138.81,138.72,24.18573306]
[1763478455632,6.06477306,138.77,138.72,24.18573306]
[1763478455826,6.06477306,138.77,138.73,9.87299747]
[1763478456147,0.66,138.76,138.74,5.19714933]
[1763478456349,18.12096,138.79,138.75,5.19714933]
[1763478456666,6.06477306,138.79,138.74,6.06477306]
[1763478456841,1.56070615,138.78,138.71,27.90978769]
[1763478457039,6.06477306,138.79,138.72,10.3648011]
[1763478457239,0.66,138.78,138.73,5.1948011]
[1763478457437,0.66,138.78,138.72,10.56477306]
[1763478457438,6.06477306,138.77,138.74,5.1948011]
[1763478457660,1.56070615,138.78,138.75,5.1948011]
[1763478457961,0.66,138.77,138.76,5.18992868]
[1763478458142,6.72477306,138.77,138.76,5.18992868]
[1763478458465,0.66,138.77,138.69,15.85360075]
[1763478458638,6.72477306,138.77,138.71,6.06477306]
[1763478458958,6.06477306,138.74,138.72,9.86389272]
[1763478459160,0.90083597,138.76,138.7,18.12096]
[1763478459161,6.06477306,138.73,138.7,6.06859264]
[1763478459346,1.56083597,138.76,138.7,6.06859264]
[1763478459347,18.78096,138.76,138.71,21.98677856]
[1763478459548,6.06477306,138.77,138.72,15.91973115]
[1763478459735,18.12096,138.77,138.73,4.66904263]
[1763478459939,6.06477306,138.75,138.69,6.06859264]
[1763478460141,6.06477306,138.75,138.7,9.85811786]
[1763478460461,18.78096,138.77,138.72,6.06859264]
[1763478460641,0.66,138.76,138.73,9.85821436]
[1763478460842,7.62560903,138.76,138.74,4.66969312]
[1763478461077,1.56083597,138.76,138.7,12.1333657]
[1763478461244,6.72477306,138.81,138.73,9.78882769]
[1763478461560,6.06477306,138.85,138.8,6.06477306]
[1763478461762,4.5,138.87,138.82,6.06477306]
[1763478461763,11.22477306,138.87,138.82,6.06477306]
[1763478461964,5.16,138.87,138.83,6.06477306]
[1763478462266,18.12096,138.84,138.77,0.67]
[1763478462478,18.12096,138.85,138.75,18.12096]
[1763478462479,6.06477306,138.81,138.75,18.12096]
[1763478462682,19.71127691,138.84,138.75,6.06477306]
[1763478462960,19.71127691,138.84,138.8,6.06477306]
[1763478462961,0.69,138.84,138.8,6.06477306]
[1763478463148,0.69,138.87,138.81,6.06477306]
[1763478463343,0.69,138.87,138.82,6.06477306]
[1763478463565,1.589928,138.9,138.84,6.06477306]
[1763478463739,6.75477306,138.89,138.83,9.78882769]
[1763478463939,6.75477306,138.89,138.84,9.78882769]
[1763478464260,0.69,138.88,138.84,9.78882769]
[1763478464462,1.93593088,138.91,138.86,6.06477306]
[1763478464670,1.93593088,138.91,138.89,6.06477306]
[1763478464975,1.93593088,138.91,138.9,15.85360075]
[1763478465277,0.83593088,138.91,138.9,14.28882769]
[1763478465433,0.83593088,138.91,138.9,20.35360075]
[1763478465639,1.52593088,138.91,138.87,4.5]
[1763478465834,0.83593088,138.91,138.88,6.06477306]
[1763478466030,0.69,138.9,138.87,6.06477306]
[1763478466262,6.06477306,138.89,138.84,6.06477306]
[1763478466458,1.589928,138.9,138.84,6.06477306]
[1763478466459,0.69,138.9,138.86,6.06477306]
[1763478466669,0.69,138.9,138.85,6.06477306]
[1763478466843,0.8999928,138.89,138.81,4.5]
[1763478467044,6.06477306,138.89,138.83,24.18573306]
[1763478467264,6.06477306,138.89,138.82,9.78882769]
[1763478467265,0.69,138.88,138.81,4.5]
[1763478467440,6.06477306,138.86,138.74,6.06859264]
[1763478467642,6.06477306,138.82,138.77,6.06477306]
[1763478467837,6.06477306,138.82,138.76,10.56477306]
[1763478468039,0.69,138.81,138.77,4.6613287]
[1763478468241,6.06477306,138.78,138.72,6.06859264]
[1763478468558,27.90978769,138.8,138.67,6.06859264]
[1763478468861,18.12096,138.75,138.68,9.86281896]
[1763478469065,0.69,138.79,138.7,6.06477306]
[1763478469375,6.06477306,138.72,138.66,10.56477306]
[1763478469540,6.06477306,138.71,138.67,4.68504761]
[1763478469736,0.69,138.73,138.68,4.68504761]
[1763478469957,0.69,138.77,138.71,6.06477306]
[1763478470168,6.06477306,138.76,138.69,14.28882769]
[1763478470445,0.69,138.79,138.75,6.06477306]
[1763478470649,0.69,138.79,138.76,6.06477306]
[1763478470849,0.69,138.79,138.75,10.34421016]
[1763478471150,11.03421016,138.79,138.73,10.34421016]
[1763478471563,0.69,138.78,138.75,10.34421016]
[1763478471750,10.34421016,138.77,138.71,14.28882769]
[1763478471955,0.69,138.78,138.71,14.28882769]
[1763478471956,10.34421016,138.76,138.71,10.34421016]
[1763478472266,0.69,138.77,138.67,5.86588428]
[1763478472450,10.34421016,138.74,138.69,16.21009444]
[1763478472647,10.34421016,138.76,138.7,26.12663841]
[1763478472861,0.69,138.76,138.72,10.34421016]
[1763478473048,0.69,138.75,138.73,4.69703542]
[1763478473248,0.69,138.75,138.74,4.70217863]
[1763478473450,0.69,138.78,138.74,4.70212929]
[1763478473651,0.90051149,138.81,138.76,10.34421016]
[1763478473944,0.69,138.8,138.76,10.34421016]
[1763478474161,0.69,138.8,138.75,4.5]
[1763478474162,0.69,138.8,138.77,10.34421016]
[1763478474373,0.69,138.83,138.79,10.34421016]
[1763478474552,10.34421016,138.86,138.81,20.13303785]
[1763478474868,4.5,138.89,138.79,4.5]
[1763478474869,0.90025207,138.85,138.79,4.5]
[1763478475046,10.34421016,138.83,138.79,4.5]
[1763478475365,1.5900576,138.88,138.79,14.84421016]
[1763478475366,10.34421016,138.84,138.79,14.84421016]
[1763478475569,10.34421016,138.83,138.79,4.5]
[1763478475946,0.69,138.82,138.78,32.96517016]
[1763478476142,0.69,138.82,138.79,9.94764605]
[1763478476476,0.90051149,138.81,138.8,4.71040824]
[1763478476678,19.02147149,138.81,138.8,4.71040824]
[1763478476973,18.81096,138.81,138.8,3.99040824]
[1763478477378,18.81096,138.81,138.75,9.78882769]
[1763478477551,11.03421016,138.8,138.76,5.24703716]
[1763478477750,0.69,138.8,138.75,10.34421016]
[1763478477956,11.03421016,138.79,138.74,24.63303785]
[1763478478157,0.69,138.79,138.75,15.60332778]
[1763478478364,0.69,138.79,138.75,14.84421016]
[1763478478686,28.46517016,138.81,138.76,5.25643547]
[1763478478852,29.15517016,138.81,138.75,14.84421016]
[1763478479052,29.15517016,138.81,138.72,16.21009444]
[1763478479053,10.34421016,138.78,138.72,16.21009444]
[1763478479272,10.34421016,138.75,138.73,5.26195885]
[1763478479586,18.12096,138.77,138.69,5.86588428]
[1763478479754,0.69,138.76,138.7,11.13025078]
[1763478479955,0.69,138.76,138.72,5.86588428]
[1763478480160,10.34421016,138.75,138.73,5.2643665]
[1763478480364,10.34421016,138.79,138.74,5.26796779]
[1763478480657,11.03421016,138.78,138.72,10.36588428]
[1763478480884,4.5,138.83,138.75,10.34421016]
[1763478481059,0.69,138.83,138.78,10.34421016]
[1763478481374,0.69,138.86,138.81,10.34421016]
[1763478481564,10.34421016,138.85,138.79,9.78882769]
[1763478481769,10.34421016,138.85,138.8,14.84421016]
[1763478481971,0.69,138.89,138.84,10.34421016]
[1763478482152,0.83593088,138.91,138.85,10.34421016]
[1763478482355,0.83593088,138.91,138.81,28.57978769]
[1763478482356,11.18014104,138.91,138.86,10.34421016]
[1763478482664,10.34421016,138.87,138.78,18.12096]
[1763478482984,10.34421016,138.8,138.74,20.13303785]
[1763478483192,10.34421016,138.8,138.75,10.34421016]
[1763478483364,1.59044662,138.82,138.76,10.34421016]
[1763478483682,10.34421016,138.79,138.74,5.86588428]
[1763478483888,11.24491631,138.78,138.76,5.86588428]
[1763478484183,10.34421016,138.77,138.76,5.86588428]
[1763478484351,18.12096,138.75,138.72,8.0496665]
[1763478484556,14.84421016,138.77,138.69,8.0496665]
[1763478484557,18.12096,138.7,138.69,8.0496665]
[1763478484764,10.34421016,138.7,138.68,8.0496665]
[1763478484959,10.34421016,138.69,138.68,8.0496665]
[1763478485152,9.78882769,138.75,138.64,11.01421016]
[1763478485153,10.34421016,138.71,138.67,8.0496665]
[1763478485372,4.5,138.75,138.59,7.21546822]
[1763478485373,10.34421016,138.74,138.68,10.34421016]
[1763478485575,5.1,138.75,138.67,5.17]
[1763478485798,10.34421016,138.72,138.67,14.28882769]
[1763478486107,0.6,138.74,138.65,0.67]
[1763478486296,4.5,138.78,138.71,10.34421016]
[1763478486584,10.34421016,138.74,138.69,4.5]
[1763478486787,28.46517016,138.75,138.69,14.84421016]
[1763478487087,10.34421016,138.79,138.74,20.13303785]
[1763478487391,28.46517016,138.8,138.74,20.80303785]
[1763478487564,28.46517016,138.8,138.7,7.55935367]
[1763478487565,10.34421016,138.78,138.71,0.67]
[1763478487766,28.46517016,138.76,138.7,20.13303785]
[1763478487976,18.12096,138.76,138.7,20.13303785]
[1763478488164,18.12096,138.76,138.7,10.45882769]
[1763478488377,10.34421016,138.75,138.7,28.85270435]
[1763478488552,0.90012241,138.87,138.75,9.78882769]
[1763478488752,10.34421016,138.78,138.73,14.95882769]
[1763478488956,10.34421016,138.75,138.71,8.0496665]
[1763478489174,10.34421016,138.72,138.69,8.0496665]
[1763478489385,10.34421016,138.72,138.66,8.0496665]
[1763478489386,10.34421016,138.7,138.66,8.0496665]
[1763478489586,10.34421016,138.67,138.63,8.0496665]
[1763478489770,10.34421016,138.68,138.63,8.0496665]
[1763478489968,10.34421016,138.69,138.64,11.01421016]
[1763478490180,10.34421016,138.7,138.65,9.78882769]
[1763478490354,10.34421016,138.7,138.65,20.13303785]
[1763478490557,18.12096,138.66,138.6,0.67]
[1763478490762,18.12096,138.66,138.59,11.01421016]
[1763478490988,18.12096,138.63,138.56,8.2496665]
[1763478491292,14.28882769,138.67,138.56,0.2]
[1763478491293,22.62096,138.62,138.56,0.2]
[1763478491467,0.6,138.69,138.59,10.34421016]
[1763478491667,10.34421016,138.62,138.57,20.80303785]
[1763478491865,18.12096,138.65,138.59,9.78882769]
[1763478492060,10.34421016,138.64,138.59,9.78882769]
[1763478492427,0.90064125,138.79,138.56,0.2]
[1763478492428,2.0,138.71,138.56,0.2]
[1763478492710,28.46517016,138.63,138.57,0.72]
[1763478492918,28.46517016,138.63,138.58,19.87716106]
[1763478492919,28.20929337,138.63,138.58,19.87716106]
[1763478493098,28.20929337,138.63,138.57,0.72]
[1763478493099,10.08833337,138.62,138.56,0.2]
[1763478493295,10.08833337,138.57,138.56,0.2]
[1763478493497,18.12096,138.58,138.56,0.2]
[1763478493718,10.08833337,138.57,138.56,0.2]
[1763478494092,10.08833337,138.59,138.56,0.92]
[1763478494417,10.08833337,138.57,138.56,0.2]
[1763478494586,24.39716106,138.57,138.56,0.2]
[1763478494787,18.12096,138.54,138.52,0.2]
[1763478495013,14.91008125,138.53,138.52,0.2]
[1763478495513,18.12096,138.57,138.52,0.92]
[1763478495705,18.12096,138.57,138.52,8.2496665]
[1763478495902,10.39008125,138.57,138.53,8.7696665]
[1763478496135,10.39008125,138.55,138.53,8.0496665]
[1763478496312,9.78882769,138.54,138.52,0.2]
[1763478496489,27.90978769,138.5,138.32,19.89388289]
[1763478496694,27.90978769,138.5,138.26,27.17791051]
[1763478496695,18.12096,138.34,138.26,43.1170128]
[1763478496894,18.12096,138.34,138.26,16.65910229]
[1763478496895,5.45573559,138.34,138.26,16.65910229]
[1763478497093,4.54,138.35,138.26,15.93910229]
[1763478497294,9.78882769,138.34,138.27,0.72]
[1763478497514,10.39008125,138.33,138.27,0.72]
[1763478497684,4.54,138.35,138.27,0.72]
[1763478497685,15.14510057,138.32,138.27,0.72]
[1763478497890,5.35627288,138.31,138.27,0.72]
[1763478498095,2.0,138.43,138.27,0.72]
[1763478498096,5.35627288,138.3,138.27,0.72]
[1763478498388,5.34717005,138.29,138.25,4.54]
[1763478498634,10.39008125,138.35,138.28,10.39008125]
[1763478498903,10.39008125,138.35,138.27,18.12096]
[1763478498904,14.93008125,138.37,138.3,10.39008125]
[1763478499224,14.93008125,138.37,138.27,18.12096]
[1763478499225,10.39008125,138.36,138.29,10.39008125]
[1763478499416,9.78882769,138.36,138.25,7.23320157]
[1763478499591,4.54,138.39,138.32,10.39008125]
[1763478499790,4.54,138.38,138.33,18.12096]
[1763478500196,4.54,138.38,138.33,28.51104125]
[1763478500531,4.54,138.38,138.3,11.07008125]
[1763478500703,10.39008125,138.34,138.27,11.07008125]
[1763478500889,4.54,138.33,138.27,11.07008125]
[1763478501085,10.39008125,138.32,138.14,0.35548155]
[1763478501290,20.17890894,138.29,138.24,0.68]
[1763478501516,10.39008125,138.26,138.2,0.68]
[1763478501688,0.69,138.31,138.2,0.68]
[1763478501689,0.69,138.33,138.22,0.68]
[1763478501896,10.39008125,138.28,138.22,0.68]
[1763478502096,14.93008125,138.27,138.22,0.68]
[1763478502322,10.39008125,138.26,138.22,0.68]
[1763478502628,10.39008125,138.24,138.19,0.68]
[1763478502922,9.78882769,138.36,138.26,18.12096]
[1763478503090,10.39008125,138.37,138.3,10.39008125]
[1763478503296,4.54,138.36,138.3,10.39008125]
[1763478503638,14.93008125,138.36,138.29,11.07008125]
[1763478503826,4.54,138.36,138.3,10.39008125]
[1763478504002,10.39008125,138.37,138.3,10.39008125]
[1763478504187,1.59272261,138.47,138.36,10.39008125]
[1763478504389,10.76206268,138.46,138.38,10.39008125]
[1763478504641,5.31663127,138.45,138.42,10.39008125]
[1763478504801,5.31663127,138.44,138.43,20.17890894]
[1763478504985,5.31663127,138.44,138.4,0.68]
[1763478505192,5.31663127,138.43,138.4,0.68]
[1763478505494,5.31663127,138.43,138.37,9.78882769]
[1763478505495,5.31663127,138.42,138.37,0.68]
[1763478505710,10.39008125,138.44,138.38,10.39008125]
[1763478506023,10.39008125,138.44,138.37,0.68]
[1763478506024,5.31439064,138.43,138.39,10.39008125]
[1763478506193,5.31439064,138.43,138.37,0.68]
[1763478506194,4.54,138.44,138.4,10.39008125]
[1763478506522,4.54,138.44,138.39,10.39008125]
[1763478506824,2.0,138.52,138.39,10.39008125]
[1763478506825,0.69,138.54,138.44,9.78882769]
[1763478507116,0.1,138.52,138.47,10.39008125]
[1763478507319,0.1,138.52,138.44,9.78882769]
[1763478507320,5.31025858,138.51,138.48,10.39008125]
[1763478507522,0.1,138.52,138.49,10.39008125]
[1763478507729,0.1,138.52,138.45,28.58978769]
[1763478507730,0.1,138.52,138.5,10.39008125]
[1763478508038,0.1,138.52,138.51,20.17890894]
[1763478508243,1.94,138.61,138.52,9.78882769]
[1763478508531,1.94,138.61,138.56,10.39008125]
[1763478508700,18.12096,138.59,138.53,0.68]
[1763478508898,18.12096,138.64,138.53,0.68]
[1763478508899,0.69,138.7,138.59,9.78882769]
[1763478509213,4.54,138.69,138.63,10.39008125]
[1763478509423,0.90129064,138.69,138.63,10.39008125]
[1763478509735,9.84780997,138.68,138.64,10.39008125]
[1763478509937,5.30780997,138.67,138.64,10.39008125]
[1763478510116,5.30780997,138.66,138.61,10.39008125]
[1763478510311,5.30780997,138.65,138.61,10.39008125]
[1763478510514,5.30780997,138.64,138.61,10.39008125]
[1763478510821,5.30780997,138.64,138.56,9.78882769]
[1763478510822,5.30780997,138.63,138.56,9.78882769]
[1763478511009,5.30780997,138.62,138.58,10.39008125]
[1763478511210,5.30780997,138.61,138.59,10.39008125]
[1763478511405,5.30780997,138.6,138.59,10.39008125]
[1763478511606,5.30780997,138.6,138.59,20.17890894]
[1763478511806,4.54,138.68,138.59,25.47361974]
[1763478512104,0.69,138.7,138.66,10.39008125]
[1763478512304,5.23,138.7,138.67,5.2947108]
[1763478512632,10.39008125,138.69,138.68,5.2947108]
[1763478512841,29.20104125,138.69,138.68,5.2947108]
[1763478513132,29.20104125,138.69,138.68,4.5747108]
[1763478513303,9.78882769,138.69,138.68,4.5747108]
[1763478513509,24.71890894,138.69,138.68,3.0947108]
[1763478513913,21.08019958,138.69,138.68,3.0947108]
[1763478514117,25.62019958,138.69,138.68,3.0947108]
[1763478514519,27.90978769,138.65,138.55,0.68]
[1763478514699,10.39008125,138.59,138.55,0.68]
[1763478514908,4.54,138.58,138.55,0.68]
[1763478515526,10.39008125,138.57,138.51,0.68]
[1763478515728,10.39008125,138.53,138.48,36.51549626]
[1763478515939,4.54,138.53,138.48,46.90557751]
[1763478516116,4.54,138.53,138.5,36.19694078]
[1763478516441,10.39008125,138.52,138.46,36.60782382]
[1763478516638,10.39008125,138.51,138.45,37.57656466]
[1763478516944,9.78882769,138.57,138.47,47.12050413]
[1763478516945,10.39008125,138.53,138.47,47.12050413]
[1763478517148,14.91008125,138.52,138.47,36.73042288]
[1763478517316,10.39008125,138.52,138.51,41.12345167]
[1763478517511,14.91008125,138.52,138.51,41.12345167]
[1763478517842,14.91008125,138.52,138.48,36.51549626]
[1763478518050,10.39008125,138.55,138.48,46.90557751]
[1763478518218,14.91008125,138.54,138.49,0.68]
[1763478518416,14.91008125,138.54,138.5,36.19694078]
[1763478518662,4.52,138.54,138.47,36.73042288]
[1763478519144,4.52,138.54,138.51,10.39008125]
[1763478519337,2.0,138.6,138.48,36.51549626]
[1763478519540,0.90168073,138.63,138.49,36.52222346]
[1763478519541,10.39008125,138.55,138.49,36.52222346]
[1763478519743,14.91008125,138.54,138.49,36.52222346]
[1763478519947,14.91008125,138.54,138.5,36.19694078]
[1763478520253,14.91008125,138.53,138.47,37.41042288]
[1763478520415,10.39008125,138.54,138.49,37.20222346]
[1763478520620,0.90148564,138.66,138.52,36.92998355]
[1763478520822,10.39008125,138.6,138.53,11.07008125]
[1763478521016,4.52,138.59,138.53,11.07008125]
[1763478521244,2.0,138.69,138.54,0.68]
[1763478521443,18.12096,138.57,138.54,0.68]
[1763478521649,18.12096,138.57,138.52,36.92998355]
[1763478521831,4.52,138.58,138.49,37.20222346]
[1763478522040,10.39008125,138.53,138.49,37.20222346]
[1763478522219,4.52,138.52,138.46,37.32782382]
[1763478522420,10.39008125,138.55,138.49,46.91230471]
[1763478522618,10.39008125,138.54,138.49,36.52222346]
[1763478522819,10.39008125,138.53,138.49,37.24222346]
[1763478523148,14.91008125,138.52,138.46,47.71790507]
[1763478523322,10.39008125,138.53,138.46,47.71790507]
[1763478523517,4.52,138.53,138.48,46.90557751]
[1763478524020,4.52,138.53,138.49,0.72]
[1763478524220,4.52,138.53,138.49,37.24222346]
[1763478524653,4.52,138.53,138.5,0.72]
[1763478524857,36.29682891,138.69,138.52,20.17890894]
[1763478524858,5.69097698,138.68,138.52,20.17890894]
[1763478525157,0.90135563,138.68,138.57,10.39008125]
[1763478525332,6.78962135,138.73,138.6,10.39008125]
[1763478525333,4.52,138.67,138.6,10.39008125]
[1763478525526,10.39008125,138.64,138.58,10.39008125]
[1763478525853,10.39008125,138.67,138.61,10.39008125]
[1763478526034,0.90109573,138.72,138.63,10.39008125]
[1763478526220,10.39008125,138.7,138.64,10.39008125]
[1763478526427,10.39008125,138.7,138.65,5.31478807]
[1763478526428,14.91008125,138.7,138.65,5.31478807]
[1763478526655,4.52,138.73,138.66,15.70486932]
[1763478526857,10.39008125,138.76,138.7,10.39008125]
[1763478527157,10.39008125,138.76,138.68,9.78882769]
[1763478527158,28.51104125,138.74,138.68,10.39008125]
[1763478527317,18.12096,138.75,138.66,4.52]
[1763478527318,18.12096,138.73,138.69,0.72]
[1763478527514,10.50900635,138.76,138.71,10.39008125]
[1763478527738,10.50900635,138.76,138.69,0.72]
[1763478527739,10.39008125,138.76,138.69,0.72]
[1763478527932,10.39008125,138.76,138.7,10.39008125]
[1763478528134,28.51104125,138.77,138.71,10.39008125]
[1763478528322,0.90031691,138.84,138.74,10.39008125]
[1763478528527,10.39008125,138.81,138.75,5.32623524]
[1763478528725,10.39008125,138.81,138.76,5.32623524]
[1763478528954,4.52,138.83,138.76,11.11008125]
[1763478529127,0.9000576,138.88,138.77,0.72]
[1763478529324,28.51104125,138.82,138.78,5.32729682]
[1763478529524,18.12096,138.77,138.71,0.72]
[1763478529727,18.12096,138.77,138.72,5.32722999]
[1763478529728,28.51104125,138.73,138.72,5.32722999]
[1763478529933,28.51104125,138.73,138.72,5.32902747]
[1763478530139,28.51104125,138.73,138.72,5.32858954]
[1763478530140,42.81986894,138.73,138.72,5.32858954]
[1763478530440,33.03104125,138.73,138.72,5.32778544]
[1763478530647,23.54199077,138.73,138.72,5.32778544]
[1763478530848,43.72089971,138.73,138.72,5.32778544]
[1763478531035,9.78882769,138.72,138.61,0.72]
[1763478531240,5.42116069,138.71,138.62,16.43801645]
[1763478531439,11.29124194,138.71,138.65,10.39008125]
[1763478531657,11.29124194,138.71,138.66,5.3279352]
[1763478531658,14.91008125,138.71,138.66,5.3279352]
[1763478531857,14.91008125,138.71,138.67,5.3279352]
[1763478532059,11.29130691,138.7,138.68,5.3279352]
[1763478532261,0.90096583,138.74,138.69,5.3279352]
[1763478532542,36.62717716,138.84,138.69,5.3279352]
[1763478532543,0.90051149,138.81,138.73,10.39008125]
[1763478532832,9.65419747,138.8,138.74,5.3279352]
[1763478533032,0.9000576,138.88,138.75,14.08155631]
[1763478533270,8.75362111,138.81,138.76,5.3279352]
[1763478533451,8.75362111,138.81,138.77,5.3279352]
[1763478533631,8.75362111,138.81,138.78,5.3279352]
[1763478533835,8.75362111,138.81,138.73,4.52]
[1763478534035,0.83593088,138.91,138.73,4.52]
[1763478534036,0.83593088,138.91,138.74,13.26798231]
[1763478534240,0.83593088,138.91,138.85,18.12096]
[1763478534552,0.83593088,138.91,138.86,9.78882769]
[1763478534748,0.83593088,138.91,138.86,10.50882769]
[1763478535261,0.83593088,138.91,138.89,8.75362111]
[1763478535446,0.83593088,138.91,138.9,8.75362111]
[1763478535641,0.83593088,138.91,138.86,0.72]
[1763478536057,0.83593088,138.91,138.87,5.35442828]
[1763478536230,0.83593088,138.91,138.88,5.35361257]
[1763478536428,18.77096,138.92,138.84,4.52]
[1763478536429,18.12096,138.92,138.89,14.10723368]
[1763478536671,18.5424488,138.94,138.9,5.35361257]
[1763478536961,18.12096,138.93,138.91,5.35361257]
[1763478537164,18.12096,138.93,138.92,5.35361257]
[1763478537531,19.1924488,138.93,138.92,5.35361257]
[1763478538047,0.65,138.93,138.92,5.35361257]
[1763478538762,9.40362111,138.93,138.92,5.35361257]
[1763478539069,0.1,138.96,138.89,9.78882769]
[1763478539363,0.1,138.96,138.89,16.98861516]
[1763478539553,0.1,138.96,138.92,8.75362111]
[1763478539965,0.75,138.96,138.93,5.35372717]
[1763478540159,0.75,138.96,138.94,5.35372717]
[1763478540464,0.75,138.96,138.91,8.75362111]
[1763478540669,9.78882769,138.93,138.92,4.18331555]
[1763478540865,8.75362111,138.93,138.83,5.24]
[1763478541045,9.78882769,138.94,138.85,8.75362111]
[1763478541046,8.75362111,138.91,138.85,8.75362111]
[1763478541241,4.62,138.96,138.87,8.75362111]
[1763478541462,8.75362111,138.88,138.77,0.72]
[1763478541682,8.75362111,138.82,138.78,4.81709113]
[1763478541975,18.12096,138.79,138.72,4.52]
[1763478542150,18.12096,138.79,138.76,8.75362111]
[1763478542539,3.41111443,138.94,138.78,8.75362111]
[1763478542735,0.56,138.93,138.85,8.75362111]
[1763478542970,0.56,138.93,138.84,4.52]
[1763478543465,26.87458111,138.91,138.85,8.75362111]
[1763478543655,18.12096,138.87,138.84,4.52]
[1763478543866,8.75362111,138.85,138.74,0.72]
[1763478544037,18.12096,138.8,138.74,8.75362111]
[1763478544241,8.75362111,138.79,138.75,4.81404764]
[1763478544447,18.12096,138.73,138.71,6.01521419]
[1763478544763,0.56,138.79,138.72,4.81210437]
[1763478544967,10.34882769,138.82,138.73,4.81210437]
[1763478545189,9.78882769,138.85,138.77,8.75362111]
[1763478545366,8.75362111,138.82,138.76,8.75362111]
[1763478545684,2.0,138.9,138.76,8.75362111]
[1763478545685,0.56,138.88,138.79,8.75362111]
[1763478545857,8.75362111,138.83,138.76,4.52]
[1763478546046,8.75362111,138.77,138.69,0.72]
[1763478546247,4.52,138.84,138.7,14.28293766]
[1763478546550,9.78882769,138.85,138.76,8.75362111]
[1763478546764,0.56,138.85,138.76,9.78882769]
[1763478546972,0.56,138.84,138.75,0.72]
[1763478547468,8.75362111,138.76,138.7,0.72]
[1763478547643,9.78882769,138.83,138.72,8.75362111]
[1763478547846,10.34882769,138.83,138.71,23.0624488]
[1763478548049,8.75362111,138.74,138.66,7.93187051]
[1763478548264,8.75362111,138.74,138.68,8.75362111]
[1763478548573,0.56,138.8,138.7,8.75362111]
[1763478548755,8.75362111,138.76,138.71,4.52]
[1763478549084,8.75362111,138.73,138.67,14.30882769]
[1763478549248,8.75362111,138.73,138.65,37.41640906]
[1763478549249,8.75362111,138.69,138.63,4.52]
[1763478549449,18.12096,138.67,138.6,4.52]
[1763478549659,18.12096,138.67,138.62,8.75362111]
[1763478549867,8.75362111,138.7,138.63,8.75362111]
[1763478550067,18.12096,138.71,138.62,18.5424488]
[1763478550275,18.12096,138.71,138.69,6.01521419]
[1763478550465,26.87458111,138.71,138.7,4.80807729]
[1763478551070,18.12096,138.75,138.7,4.80807729]
[1763478551290,0.56,138.8,138.71,4.80807729]
[1763478551576,4.52,138.81,138.68,0.72]